[Event "Philip Hogarty Memorial GM 2019"]
[Site "Stillorgan"]
[Date "2019.01.05"]
[Round "6"]
[White "Collins, Sam E."]
[Black "Fitzsimons, David"]
[Result "1-0"]
[ECO "B08"]
[WhiteElo "2428"]
[BlackElo "2301"]
[Annotator "NA"]
[PlyCount "137"]
[EventDate "2019.01.02"]
[EventType "tourn"]
[EventCountry "IRL"]
[SourceTitle "playchess.com"]
[Source "ChessBase"]
[SourceQuality "1"]
[TimeControl "5400+30"]

1. e4 {[%emt 0:00:00]} g6 {[%emt 0:00:00]} 2. d4 {[%emt 0:00:32]} Bg7 {[%emt 0:00:00]} 3. Nf3 {[%emt 0:00:30]} d6 {[%emt 0:00:06]} 4. Be2 {[%emt 0:01:06]} Nf6 {[%emt 0:00:09]} 5. Nc3 {[%emt 0:00:14]} O-O {[%emt 0:00:07]} 6. O-O {[%emt 0:00:05]} a6 {[%emt 0:00:12]} 7. a4 {[%emt 0:01:08]} Nc6 {[%emt 0:00:22]} 8. a5 {[%emt 0:03:40]} e5 {[%emt 0:02:07]} 9. d5 {[%emt 0:04:47]} Ne7 {[%emt 0:00:36]} 10. b4 {[%emt 0:00:38]} Ne8 {[%emt 0:08:35]} 11. Na4 {[%emt 0:14:45]} f5 {[%emt 0:07:48]} 12. c4 {[%emt 0:00:16]} Nf6 {[%emt 0:03:26]} 13. Nc3 {[%emt 0:01:25]} Nxe4 {[%emt 0:08:25]} 14. Nxe4 {[%emt 0:01:19]} fxe4 {[%emt 0:00:05]} 15. Ng5 {[%emt 0:03:02]} c6 {[%emt 0:11:06]} 16. dxc6 {[%emt 0:07:09]} bxc6 {[%emt 0:00:11]} 17. Nxe4 {[%emt 0:01:29]} Nf5 {[%emt 0:05:20]} 18. Bg4 {[%emt 0:04:37]} Be6 {[%emt 0:13:11]} 19. Nxd6 {[%emt 0:03:25]} Qe7 {[%emt 0:03:45]} 20. c5 {[%emt 0:05:38]} Bd5 {[%emt 0:03:58]} 21. Bxf5 {[%emt 0:06:39]} gxf5 {[%emt 0:00:05]} 22. Ra3 {[%emt 0:00:14]} e4 {[%emt 0:02:12]} 23. Bf4 {[%emt 0:00:51]} Be5 {[%emt 0:07:55]} 24. Qd2 {[%emt 0:01:16]} Kh8 {[%emt 0:00:22]} 25. Rg3 {[%emt 0:01:06]} Rab8 {[%emt 0:00:50]} 26. Rb1 {[%emt 0:03:15]} Qf6 {[%emt 0:00:41]} 27. h3 {[%emt 0:02:15]} Bxf4 {[%emt 0:00:55]} 28. Qxf4 {[%emt 0:01:41]} Ba2 {[%emt 0:00:11]} 29. Rd1 {[%emt 0:01:59]} Rxb4 {[%emt 0:04:00]} 30. Qxf5 {[%emt 0:01:42]} Qxf5 {[%emt 0:00:22]} 31. Nxf5 {[%emt 0:00:06]} Rb5 {[%emt 0:00:34]} 32. Nd6 {[%emt 0:01:55]} Rxc5 {[%emt 0:01:34]} 33. Nxe4 {[%emt 0:01:05]} Rxa5 {[%emt 0:00:03]} 34. Ra1 {[%emt 0:00:43]} Re5 {[%emt 0:00:53]} 35. Rxa2 {[%emt 0:00:13]} Rxe4 {[%emt 0:00:06]} 36. Rxa6 {[%emt 0:00:06]} Re1+ {[%emt 0:09:33]} 37. Kh2 {[%emt 0:00:06]} Re6 {[%emt 0:00:29]} 38. f3 {[%emt 0:03:34]} Rc8 {[%emt 0:01:17]} 39. Rg5 {[%emt 0:01:37]} Re2 {[%emt 0:00:45]} 40. h4 {[%emt 0:02:47]} c5 {[%emt 0:05:08]} 41. Ra7 {[%emt 0:01:59]} Re6 {[%emt 0:00:31]} 42. Rgg7 {[%emt 0:01:02]} h6 {[%emt 0:00:01]} 43. Rh7+ {[%emt 0:02:34]} Kg8 {[%emt 0:00:03]} 44. Rag7+ {[%emt 0:00:14]} Kf8 {[%emt 0:00:05]} 45. Rc7 {[%emt 0:00:14]} Rxc7 {[%emt 0:00:12]} 46. Rxc7 {[%emt 0:00:06]} Re5 {[%emt 0:00:03]} 47. g4 {[%emt 0:01:20]} Ke8 {[%emt 0:00:23]} 48. h5 {[%emt 0:00:57]} Kd8 {[%emt 0:00:04]} 49. Rc6 {[%emt 0:00:45]} Kd7 {[%emt 0:00:42]} 50. Rxh6 {[%emt 0:00:32]} c4 {[%emt 0:00:06]} 51. Ra6 {[%emt 0:00:34]} c3 {[%emt 0:00:50]} 52. Ra2 {[%emt 0:01:02]} Rc5 {[%emt 0:00:14]} 53. Rc2 {[%emt 0:00:05]} Ke6 {[%emt 0:00:10]} 54. Kg3 {[%emt 0:00:23]} Kf6 {[%emt 0:00:16]} 55. f4 {[%emt 0:01:50]} Rc4 {[%emt 0:00:04]} 56. Kf3 {[%emt 0:00:12]} Rc5 {[%emt 0:00:44]} 57. Ke4 {[%emt 0:00:19]} Rc4+ {[%emt 0:00:04]} 58. Ke3 {[%emt 0:00:04]} Ke6 {[%emt 0:01:11]} 59. Kf3 {[%emt 0:04:18]} Kf6 {[%emt 0:00:12]} 60. Kg3 {[%emt 0:00:38]} Ke6 {[%emt 0:01:50]} 61. Kh4 {[%emt 0:01:35]} Kf6 {[%emt 0:02:18]} 62. f5 {[%emt 0:00:48]} Kg7 {[%emt 0:01:16]} 63. Kg5 {[%emt 0:00:39]} Rc5 {[%emt 0:00:14]} 64. h6+ {[%emt 0:01:24]} Kh7 {[%emt 0:00:31]} 65. Kh5 {[%emt 0:00:28]} Kg8 {[%emt 0:00:53]} 66. Kg6 {[%emt 0:00:41]} Rc4 {[%emt 0:00:12]} 67. g5 {[%emt 0:00:22]} Rc7 {[%emt 0:00:32]} 68. Re2 {[%emt 0:06:35]} Rg7+ {[%emt 0:01:30]} 69. hxg7 {[%emt 0:00:08]} 1-0

[Event "Philip Hogarty Memorial GM 2019"]
[Site "Stillorgan"]
[Date "2019.01.05"]
[Round "6"]
[White "Lane, Gary W"]
[Black "Quinn, Mark"]
[Result "1/2-1/2"]
[ECO "B81"]
[WhiteElo "2358"]
[BlackElo "2386"]
[Annotator "NA"]
[PlyCount "108"]
[EventDate "2019.01.02"]
[EventType "tourn"]
[EventCountry "IRL"]
[SourceTitle "playchess.com"]
[Source "ChessBase"]
[SourceQuality "1"]
[TimeControl "5400+30"]

1. e4 {[%emt 0:04:29]} c5 {[%emt 0:03:32]} 2. Nf3 {[%emt 0:00:25]} e6 {[%emt 0:00:45]} 3. d4 {[%emt 0:00:36]} cxd4 {[%emt 0:00:08]} 4. Nxd4 {[%emt 0:00:05]} Nf6 {[%emt 0:00:09]} 5. Nc3 {[%emt 0:00:33]} d6 {[%emt 0:00:05]} 6. g4 {[%emt 0:00:07]} h6 {[%emt 0:00:44]} 7. h3 {[%emt 0:02:25]} Nc6 {[%emt 0:04:27]} 8. Bg2 {[%emt 0:00:43]} Bd7 {[%emt 0:01:22]} 9. O-O {[%emt 0:05:41]} a6 {[%emt 0:02:24]} 10. Be3 {[%emt 0:03:29]} g5 {[%emt 0:25:21]} 11. Qe2 {[%emt 0:25:11]} Ne5 {[%emt 0:19:27]} 12. f4 {[%emt 0:02:50]} gxf4 {[%emt 0:00:07]} 13. Bxf4 {[%emt 0:00:04]} Be7 {[%emt 0:01:58]} 14. Nf3 {[%emt 0:13:16]} Qb6+ {[%emt 0:08:51]} 15. Kh1 {[%emt 0:00:15]} Ng6 {[%emt 0:07:10]} 16. Be3 {[%emt 0:07:57]} Qc7 {[%emt 0:01:37]} 17. Kg1 {[%emt 0:02:55]} Bc6 {[%emt 0:01:24]} 18. Nd4 {[%emt 0:00:43]} Ne5 {[%emt 0:01:22]} 19. Nxc6 {[%emt 0:04:35]} bxc6 {[%emt 0:00:41]} 20. Rf2 {[%emt 0:02:48]} Nfd7 {[%emt 0:01:05]} 21. b3 {[%emt 0:00:54]} Bg5 {[%emt 0:01:50]} 22. Rd1 {[%emt 0:00:51]} Rg8 {[%emt 0:01:25]} 23. Qd2 {[%emt 0:02:20]} Ke7 {[%emt 0:01:11]} 24. Ne2 {[%emt 0:00:24]} Rad8 {[%emt 0:05:42]} 25. Nf4 {[%emt 0:00:18]} c5 {[%emt 0:01:20]} 26. Nh5 {[%emt 0:01:44]} c4 {[%emt 0:00:47]} 27. Rdf1 {[%emt 0:06:03]} c3 {[%emt 0:01:09]} 28. Qd4 {[%emt 0:03:31]} Qc5 {[%emt 0:02:19]} 29. Qxc5 {[%emt 0:02:11]} Nxc5 {[%emt 0:00:55]} 30. Bd4 {[%emt 0:00:30]} Ncd7 {[%emt 0:00:37]} 31. Re2 {[%emt 0:00:27]} Bd2 {[%emt 0:01:00]} 32. Be3 {[%emt 0:00:27]} Bxe3+ {[%emt 0:00:27]} 33. Rxe3 {[%emt 0:00:01]} Rc8 {[%emt 0:00:17]} 34. Nf4 {[%emt 0:00:30]} Rc5 {[%emt 0:00:37]} 35. Ne2 {[%emt 0:00:58]} Rgc8 {[%emt 0:00:34]} 36. Nd4 {[%emt 0:00:10]} Nf8 {[%emt 0:01:04]} 37. Kh2 {[%emt 0:01:09]} a5 {[%emt 0:00:35]} 38. a4 {[%emt 0:00:05]} Nfg6 {[%emt 0:00:20]} 39. Kg3 {[%emt 0:00:01]} Rh8 {[%emt 0:01:10]} 40. Nb5 {[%emt 0:00:02]} h5 {[%emt 0:00:22]} 41. Rxc3 {[%emt 0:00:06]} Rxc3+ {[%emt 0:00:09]} 42. Nxc3 {[%emt 0:00:08]} hxg4 {[%emt 0:00:10]} 43. Nb5 {[%emt 0:00:34]} gxh3 {[%emt 0:01:30]} 44. Bxh3 {[%emt 0:00:01]} Rh4 {[%emt 0:00:51]} 45. Re1 {[%emt 0:00:16]} Rf4 {[%emt 0:00:38]} 46. Re3 {[%emt 0:02:25]} Nd7 {[%emt 0:00:28]} 47. Bf5 {[%emt 0:01:56]} exf5 {[%emt 0:01:20]} 48. exf5+ {[%emt 0:00:01]} Nde5 {[%emt 0:00:06]} 49. fxg6 {[%emt 0:00:22]} Rg4+ {[%emt 0:00:06]} 50. Kf2 {[%emt 0:00:24]} fxg6 {[%emt 0:00:24]} 51. c3 {[%emt 0:00:39]} Rf4+ {[%emt 0:00:38]} 52. Kg3 {[%emt 0:00:17]} Rg4+ {[%emt 0:00:13]} 53. Kf2 {[%emt 0:01:31]} Rf4+ {[%emt 0:00:15]} 54. Kg3 {[%emt 0:00:13]} Rg4+ {[%emt 0:00:31]} 1/2-1/2

[Event "Philip Hogarty Memorial GM 2019"]
[Site "Stillorgan"]
[Date "2019.01.05"]
[Round "6"]
[White "Daly, Colm"]
[Black "O`Donnell, Conor"]
[Result "1-0"]
[ECO "D37"]
[WhiteElo "2282"]
[BlackElo "2358"]
[Annotator "NA"]
[PlyCount "131"]
[EventDate "2019.01.02"]
[EventType "tourn"]
[EventCountry "IRL"]
[SourceTitle "playchess.com"]
[Source "ChessBase"]
[SourceQuality "1"]
[TimeControl "5400+30"]

1. d4 {[%emt 0:13:30]} Nf6 {[%emt 0:00:00]} 2. c4 {[%emt 0:00:05]} e6 {[%emt 0:00:00]} 3. Nf3 {[%emt 0:00:06]} d5 {[%emt 0:00:19]} 4. e3 {[%emt 0:00:20]} b6 {[%emt 0:01:09]} 5. Bd3 {[%emt 0:00:58]} Bb7 {[%emt 0:01:40]} 6. O-O {[%emt 0:00:07]} dxc4 {[%emt 0:05:03]} 7. Bxc4 {[%emt 0:00:06]} Be7 {[%emt 0:00:15]} 8. Nc3 {[%emt 0:10:59]} O-O {[%emt 0:00:20]} 9. Qe2 {[%emt 0:00:04]} c5 {[%emt 0:01:26]} 10. Rd1 {[%emt 0:00:09]} Nbd7 {[%emt 0:03:24]} 11. dxc5 {[%emt 0:04:19]} Bxc5 {[%emt 0:00:51]} 12. h3 {[%emt 0:00:17]} Rc8 {[%emt 0:06:10]} 13. Bd2 {[%emt 0:12:19]} Qc7 {[%emt 0:02:06]} 14. Ba6 {[%emt 0:04:54]} e5 {[%emt 0:13:55]} 15. e4 {[%emt 0:05:13]} Bxa6 {[%emt 0:01:51]} 16. Qxa6 {[%emt 0:00:04]} Nb8 {[%emt 0:00:33]} 17. Qe2 {[%emt 0:05:34]} h6 {[%emt 0:04:22]} 18. Rac1 {[%emt 0:00:03]} Qe7 {[%emt 0:03:34]} 19. Nh4 {[%emt 0:06:29]} Qe6 {[%emt 0:04:45]} 20. Nf5 {[%emt 0:00:30]} Nc6 {[%emt 0:02:16]} 21. Be3 {[%emt 0:02:13]} Rfd8 {[%emt 0:06:29]} 22. Bxc5 {[%emt 0:05:42]} bxc5 {[%emt 0:00:04]} 23. Qa6 {[%emt 0:00:58]} Kh7 {[%emt 0:08:29]} 24. Rd6 {[%emt 0:04:17]} Rxd6 {[%emt 0:04:11]} 25. Nxd6 {[%emt 0:00:05]} Rd8 {[%emt 0:00:32]} 26. Nb7 {[%emt 0:05:25]} Rb8 {[%emt 0:06:59]} 27. Nxc5 {[%emt 0:00:09]} Qd6 {[%emt 0:00:22]} 28. Nb3 {[%emt 0:01:40]} Rb6 {[%emt 0:00:25]} 29. Qc4 {[%emt 0:00:51]} Nd4 {[%emt 0:01:24]} 30. Rd1 {[%emt 0:04:40]} Rc6 {[%emt 0:04:58]} 31. Qd3 {[%emt 0:00:04]} Rb6 {[%emt 0:02:12]} 32. Nd5 {[%emt 0:05:08]} Nxb3 {[%emt 0:02:48]} 33. axb3 {[%emt 0:03:55]} Rb7 {[%emt 0:02:34]} 34. Qf3 {[%emt 0:00:20]} Qe6 {[%emt 0:01:24]} 35. b4 {[%emt 0:01:14]} Ne8 {[%emt 0:00:58]} 36. Rc1 {[%emt 0:00:55]} Nd6 {[%emt 0:01:34]} 37. Qd3 {[%emt 0:00:40]} Nb5 {[%emt 0:01:23]} 38. Rc5 {[%emt 0:00:12]} a6 {[%emt 0:01:19]} 39. Kh2 {[%emt 0:00:20]} Nd4 {[%emt 0:00:52]} 40. f4 {[%emt 0:00:12]} Nb5 {[%emt 0:01:29]} 41. f5 {[%emt 0:00:09]} Qd6 {[%emt 0:00:31]} 42. Qg3 {[%emt 0:00:27]} Nd4 {[%emt 0:00:47]} 43. f6 {[%emt 0:00:58]} g6 {[%emt 0:01:27]} 44. Rc8 {[%emt 0:00:07]} Rb8 {[%emt 0:02:10]} 45. Rc7 {[%emt 0:00:07]} Rf8 {[%emt 0:00:28]} 46. Qg4 {[%emt 0:01:45]} Ne6 {[%emt 0:00:23]} 47. Re7 {[%emt 0:00:11]} h5 {[%emt 0:00:48]} 48. Qd1 {[%emt 0:00:11]} Nf4 {[%emt 0:00:56]} 49. Qb3 {[%emt 0:02:56]} Nxd5 {[%emt 0:00:15]} 50. Qxd5 {[%emt 0:00:02]} Qxf6 {[%emt 0:00:16]} 51. Qxe5 {[%emt 0:00:03]} Qxe5+ {[%emt 0:00:16]} 52. Rxe5 {[%emt 0:00:03]} Rb8 {[%emt 0:00:26]} 53. b5 {[%emt 0:01:03]} axb5 {[%emt 0:01:15]} 54. b4 {[%emt 0:00:04]} Kg7 {[%emt 0:00:39]} 55. Kg3 {[%emt 0:00:02]} Rb7 {[%emt 0:01:01]} 56. Kf4 {[%emt 0:00:12]} f6 {[%emt 0:00:37]} 57. Rc5 {[%emt 0:00:57]} Kf7 {[%emt 0:00:19]} 58. e5 {[%emt 0:01:07]} Rb6 {[%emt 0:01:12]} 59. Ke4 {[%emt 0:01:27]} fxe5 {[%emt 0:00:39]} 60. Kxe5 {[%emt 0:00:36]} Re6+ {[%emt 0:00:02]} 61. Kd4 {[%emt 0:00:29]} Rd6+ {[%emt 0:00:33]} 62. Rd5 {[%emt 0:00:19]} Ke6 {[%emt 0:00:39]} 63. Rxd6+ {[%emt 0:00:28]} Kxd6 {[%emt 0:00:02]} 64. h4 {[%emt 0:00:13]} Kc6 {[%emt 0:00:32]} 65. Ke5 {[%emt 0:00:07]} Kb6 {[%emt 0:00:13]} 66. Kd6 {[%emt 0:00:47]} 1-0

[Event "Philip Hogarty Memorial GM 2019"]
[Site "Stillorgan"]
[Date "2019.01.05"]
[Round "7"]
[White "Maksimenko, Andrei"]
[Black "Lane, Gary W"]
[Result "0-1"]
[ECO "A04"]
[WhiteElo "2484"]
[BlackElo "2358"]
[Annotator "ChessBase"]
[PlyCount "57"]
[EventDate "2019.01.02"]
[EventType "tourn"]
[EventCountry "IRL"]
[SourceTitle "playchess.com"]
[Source "ChessBase"]
[SourceQuality "1"]
[TimeControl "5400+30"]

1. Nf3 {[%emt 0:00:00]} f5 {[%emt 0:00:00]} 2. d3 {[%emt 0:01:22]} d6 {[%emt 0:05:14]} 3. e4 {[%emt 0:01:51]} e5 {[%emt 0:07:33]} 4. Nc3 {[%emt 0:00:42]} Nf6 {[%emt 0:01:42]} 5. exf5 {[%emt 0:00:31]} Bxf5 {[%emt 0:01:43]} 6. d4 {[%emt 0:00:06]} e4 {[%emt 0:08:44]} 7. Nh4 {[%emt 0:02:28]} Bg4 {[%emt 0:00:15]} 8. Be2 {[%emt 0:04:35]} Bxe2 {[%emt 0:00:38]} 9. Qxe2 {[%emt 0:01:14]} d5 {[%emt 0:00:05]} 10. Bg5 {[%emt 0:11:23]} Bb4 {[%emt 0:01:46]} 11. Qb5+ {[%emt 0:11:33]} Nc6 {[%emt 0:08:46]} 12. Qxb7 {[%emt 0:02:36]} Nxd4 {[%emt 0:05:59]} 13. O-O-O {[%emt 0:43:36]} Bxc3 {[%emt 0:09:18]} 14. bxc3 {[%emt 0:00:11]} Rb8 {[%emt 0:00:16]} 15. Bxf6 {[%emt 0:01:11]} gxf6 {[%emt 0:01:47]} 16. Qa6 {[%emt 0:00:39]} Rb6 {[%emt 0:10:21]} 17. Qa4+ {[%emt 0:00:17]} Nc6 {[%emt 0:00:05]} 18. c4 {[%emt 0:00:55]} Qd6 {[%emt 0:02:15]} 19. Rxd5 {[%emt 0:13:19]} Qf4+ {[%emt 0:03:21]} 20. Rd2 {[%emt 0:00:21]} O-O {[%emt 0:01:17]} 21. c5 {[%emt 0:00:36]} Rb4 {[%emt 0:00:46]} 22. Qxc6 {[%emt 0:00:11]} Rfb8 {[%emt 0:15:36]} 23. Qe6+ {[%emt 0:00:18]} Kh8 {[%emt 0:00:19]} 24. Kd1 {[%emt 0:00:30]} Rb1+ {[%emt 0:08:17]} 25. Ke2 {[%emt 0:00:00]} Rxh1 {[%emt 0:00:06]} 26. Qh3 {[%emt 0:01:57]} Qg5 {[%emt 0:01:32]} 27. Nf5 {[%emt 0:01:08]} Rc1 {[%emt 0:00:30]} 28. Nh6 {[%emt 0:00:00]} Qxc5 {[%emt 0:02:03]} 29. Qe6 {[%emt 0:01:00]} 0-1

[Event "Philip Hogarty Memorial GM 2019"]
[Site "Stillorgan"]
[Date "2019.01.05"]
[Round "7"]
[White "Fitzsimons, David"]
[Black "Daly, Colm"]
[Result "1-0"]
[ECO "B51"]
[WhiteElo "2301"]
[BlackElo "2282"]
[Annotator "NA"]
[PlyCount "103"]
[EventDate "2019.01.02"]
[EventType "tourn"]
[EventCountry "IRL"]
[SourceTitle "playchess.com"]
[Source "ChessBase"]
[SourceQuality "1"]
[TimeControl "5400+30"]

1. e4 {[%emt 0:00:00]} c5 {[%emt 0:09:51]} 2. Nf3 {[%emt 0:00:00]} d6 {[%emt 0:00:09]} 3. Nc3 {[%emt 0:00:00]} Nc6 {[%emt 0:01:32]} 4. Bb5 {[%emt 0:00:05]} e5 {[%emt 0:02:37]} 5. Bxc6+ {[%emt 0:02:00]} bxc6 {[%emt 0:00:02]} 6. d3 {[%emt 0:00:10]} f6 {[%emt 0:02:11]} 7. O-O {[%emt 0:02:21]} Bg4 {[%emt 0:03:04]} 8. h3 {[%emt 0:01:26]} Bh5 {[%emt 0:00:02]} 9. a3 {[%emt 0:03:18]} d5 {[%emt 0:06:36]} 10. Bd2 {[%emt 0:03:25]} Ne7 {[%emt 0:03:05]} 11. Qe2 {[%emt 0:06:32]} d4 {[%emt 0:02:17]} 12. Na4 {[%emt 0:00:44]} Nc8 {[%emt 0:00:09]} 13. b4 {[%emt 0:00:41]} Nb6 {[%emt 0:01:31]} 14. Nxc5 {[%emt 0:02:18]} Bxc5 {[%emt 0:00:07]} 15. bxc5 {[%emt 0:00:05]} Na4 {[%emt 0:00:06]} 16. g4 {[%emt 0:08:47]} Bf7 {[%emt 0:00:08]} 17. Nh4 {[%emt 0:00:30]} Nxc5 {[%emt 0:05:44]} 18. f4 {[%emt 0:02:37]} exf4 {[%emt 0:01:41]} 19. Nf5 {[%emt 0:06:39]} Ne6 {[%emt 0:02:27]} 20. Bxf4 {[%emt 0:01:05]} O-O {[%emt 0:03:06]} 21. Bd6 {[%emt 0:01:02]} Re8 {[%emt 0:00:02]} 22. h4 {[%emt 0:05:50]} Bg6 {[%emt 0:12:17]} 23. Qh2 {[%emt 0:03:44]} a5 {[%emt 0:03:43]} 24. Rf2 {[%emt 0:01:03]} Ra7 {[%emt 0:00:12]} 25. Raf1 {[%emt 0:01:10]} Rd7 {[%emt 0:00:33]} 26. e5 {[%emt 0:07:23]} fxe5 {[%emt 0:11:18]} 27. Bxe5 {[%emt 0:03:43]} Bxf5 {[%emt 0:00:31]} 28. gxf5 {[%emt 0:00:32]} Nf8 {[%emt 0:22:52]} 29. f6 {[%emt 0:01:31]} Ng6 {[%emt 0:00:07]} 30. Bxd4 {[%emt 0:00:53]} Rf7 {[%emt 0:02:17]} 31. c3 {[%emt 0:00:46]} gxf6 {[%emt 0:00:52]} 32. Bxf6 {[%emt 0:00:20]} Qxd3 {[%emt 0:01:48]} 33. h5 {[%emt 0:00:34]} Re4 {[%emt 0:00:28]} 34. hxg6 {[%emt 0:01:31]} Rg4+ {[%emt 0:00:03]} 35. Rg2 {[%emt 0:01:13]} Qxg6 {[%emt 0:02:10]} 36. Rxg4 {[%emt 0:01:01]} Qxg4+ {[%emt 0:00:01]} 37. Qg2 {[%emt 0:00:08]} Qxg2+ {[%emt 0:00:06]} 38. Kxg2 {[%emt 0:00:04]} a4 {[%emt 0:00:07]} 39. Bd4 {[%emt 0:00:12]} Rb7 {[%emt 0:01:32]} 40. Rf3 {[%emt 0:00:26]} Rb3 {[%emt 0:00:32]} 41. c4 {[%emt 0:00:04]} Rxf3 {[%emt 0:00:39]} 42. Kxf3 {[%emt 0:00:05]} Kf7 {[%emt 0:00:03]} 43. Be5 {[%emt 0:00:32]} Ke6 {[%emt 0:00:07]} 44. Ke4 {[%emt 0:00:04]} h5 {[%emt 0:00:05]} 45. Bg3 {[%emt 0:00:10]} Kf6 {[%emt 0:01:16]} 46. Bh4+ {[%emt 0:00:04]} Ke6 {[%emt 0:00:05]} 47. c5 {[%emt 0:00:05]} Kd7 {[%emt 0:01:23]} 48. Ke5 {[%emt 0:00:12]} Kc7 {[%emt 0:00:11]} 49. Ke6 {[%emt 0:00:05]} Kb7 {[%emt 0:00:51]} 50. Kd7 {[%emt 0:00:05]} Ka8 {[%emt 0:00:19]} 51. Kxc6 {[%emt 0:00:05]} Kb8 {[%emt 0:00:05]} 52. Kd7 {[%emt 0:00:04]} 1-0

[Event "Philip Hogarty Memorial GM 2019"]
[Site "Stillorgan"]
[Date "2019.01.06"]
[Round "8"]
[White "Collins, Sam E."]
[Black "Maksimenko, Andrei"]
[Result "1/2-1/2"]
[ECO "B51"]
[WhiteElo "2428"]
[BlackElo "2484"]
[Annotator "ChessBase"]
[PlyCount "32"]
[EventDate "2019.01.02"]
[EventType "tourn"]
[EventCountry "IRL"]
[SourceTitle "playchess.com"]
[Source "ChessBase"]
[SourceQuality "1"]
[TimeControl "5400+30"]

1. e4 {[%emt 0:02:36]} c5 {[%emt 0:05:53]} 2. Nf3 {[%emt 0:00:14]} Nc6 {[%emt 0:00:14]} 3. Bb5 {[%emt 0:00:44]} d6 {[%emt 0:03:46]} 4. O-O {[%emt 0:00:52]} Bd7 {[%emt 0:00:02]} 5. Re1 {[%emt 0:00:20]} Nf6 {[%emt 0:00:28]} 6. c3 {[%emt 0:01:07]} a6 {[%emt 0:00:12]} 7. Bf1 {[%emt 0:03:26]} Bg4 {[%emt 0:00:40]} 8. h3 {[%emt 0:00:14]} Bxf3 {[%emt 0:00:09]} 9. Qxf3 {[%emt 0:00:07]} e6 {[%emt 0:00:11]} 10. d3 {[%emt 0:06:11]} Be7 {[%emt 0:00:59]} 11. Nd2 {[%emt 0:02:26]} O-O {[%emt 0:01:41]} 12. Qe2 {[%emt 0:02:49]} Re8 {[%emt 0:12:06]} 13. g3 {[%emt 0:05:24]} Nd7 {[%emt 0:06:02]} 14. Nf3 {[%emt 0:09:06]} Bf6 {[%emt 1:04:37]} 15. Bg2 {[%emt 1:01:54]} Be7 {[%emt 0:00:30]} 16. Bf1 Nf6 {[%emt 0:00:30]} 1/2-1/2